fUST/lending_fUST_20250730
["ID","MTS","AMOUNT","RATE_DAILY","PERIOD"]
[376057814,1753845033800,-460.0,0.0001942,2]
[376057815,1753845033810,-798.73,0.0001942,2]
[376057816,1753845033820,-468.75,0.0001942,2]
[376057817,1753845033830,-460.0,0.0001942,2]
[376057818,1753845033840,-2890.26,0.0001942,2]
[376057819,1753845033850,-460.0,0.0001942,2]
[376057820,1753845033859,-460.0,0.0001942,2]
[376057821,1753845033869,-460.0,0.00019421,2]
[376057822,1753845033879,-460.0,0.00019421,2]
[376057823,1753845033889,-460.0,0.00019421,2]
[376057824,1753845033898,-460.0,0.00019421,2]
[376057825,1753845033908,-460.0,0.00019421,2]
[376057826,1753845033918,-489.30054674,0.00019421,2]
[376057827,1753845033928,-224.72871113,0.00019421,2]
[376057828,1753845033939,-460.0,0.00019421,2]
[376057829,1753845033950,-460.0,0.00019421,2]
[376057830,1753845033960,-1397.32,0.00019421,2]
[376057831,1753845033969,-460.0,0.00019421,2]
[376057832,1753845033979,-460.0,0.00019421,2]
[376057833,1753845033988,-219.43,0.00019421,2]
[376057834,1753845033998,-460.0,0.00019421,2]
[376057835,1753845034008,-460.0,0.00019421,2]
[376057836,1753845034019,-460.0,0.00019421,2]
[376057837,1753845034029,-460.0,0.00019421,2]
[376057838,1753845034040,-787.15,0.00019421,2]
[376057839,1753845034050,-460.0,0.00019421,2]
[376057840,1753845034059,-460.0,0.00019421,2]
[376057841,1753845034069,-460.0,0.00019421,2]
[376057842,1753845034079,-823.58,0.00019421,2]
[376057843,1753845034089,-439.92514132,0.00019421,2]
[376057844,1753845034099,-460.0,0.00019421,2]
[376057845,1753845034109,-487.59,0.00019421,2]
[376057846,1753845034120,-1612.25,0.00019422,2]
[376057847,1753845034130,-460.0,0.00019422,2]
[376057848,1753845034145,-460.0,0.00019422,2]
[376057849,1753845034158,-565.06,0.00019422,2]
[376057850,1753845034168,-463.91,0.00019422,2]
[376057851,1753845034178,-501.54,0.00019422,2]
[376057852,1753845034189,-460.0,0.00019425,2]
[376057853,1753845034199,-460.0,0.00019427,2]
[376057854,1753845034208,-460.0,0.00019693,2]
[376057855,1753845034218,-530.09,0.00019693,2]
[376057856,1753845034228,-1136.61,0.00019694,2]
[376057857,1753845034238,-460.0,0.00019694,2]
[376057858,1753845034248,-460.0,0.00019694,2]
[376057859,1753845034258,-798.73,0.00019694,2]
[376057860,1753845034267,-468.75,0.00019694,2]
[376057861,1753845034276,-2890.26,0.00019694,2]
[376057862,1753845034286,-460.0,0.00019694,2]
[376057863,1753845034296,-460.0,0.00019694,2]
[376057864,1753845034305,-460.0,0.00019695,2]
[376057865,1753845034315,-460.0,0.00019695,2]
[376057866,1753845034324,-460.0,0.00019695,2]
[376057867,1753845034334,-460.0,0.00019695,2]
[376057868,1753845034343,-460.0,0.00019695,2]
[376057869,1753845034352,-520.6712624,0.00019695,2]
[376057870,1753845034361,-460.0,0.00019695,2]
[376057871,1753845034371,-1397.32,0.00019695,2]
[376057872,1753845034381,-460.0,0.00019695,2]
[376057873,1753845034391,-242.32,0.00019695,2]
[376057874,1753845034400,-300.85,0.00019695,2]
[376057875,1753845034409,-460.0,0.00019695,2]
[376057876,1753845034419,-418.53405196,0.00019695,2]
[376057877,1753845034428,-460.0,0.00019695,2]
[376057878,1753845034438,-787.15,0.00019695,2]
[376057879,1753845034448,-460.0,0.00019695,2]
[376057880,1753845034457,-460.0,0.00019695,2]
[376057881,1753845034467,-460.0,0.00019695,2]
[376057882,1753845034476,-823.58,0.00019695,2]
[376057883,1753845034487,-460.0,0.00019695,2]
[376057884,1753845034497,-487.59,0.00019695,2]
[376057885,1753845034507,-1612.25,0.00019696,2]
[376057886,1753845034516,-460.0,0.00019696,2]
[376057887,1753845034534,-565.06,0.00019696,2]
[376057888,1753845034548,-463.91,0.00019696,2]
[376057889,1753845034561,-501.54,0.00019696,2]
[376057890,1753845034574,-460.0,0.00019699,2]
[376057891,1753845034586,-460.0,0.00019701,2]
[376057892,1753845034601,-500.0,0.000198,2]
[376057893,1753845034612,-502.81425968,0.000198,2]
[376057894,1753845034623,-501.79877263,0.000198,2]
[376057895,1753845034634,-17921.73816208,0.000199,2]
[376057896,1753845034647,-199.64049152,0.00019967,2]
[376057897,1753845034659,-530.09,0.00019967,2]
[376057898,1753845034672,-1136.61,0.00019968,2]
[376057899,1753845034683,-460.0,0.00019968,2]
[376057900,1753845034694,-798.73,0.00019968,2]
[376057901,1753845034706,-468.75,0.00019968,2]
[376057902,1753845034718,-2890.26,0.00019968,2]
[376057903,1753845034729,-335.44,0.00019968,2]
[376057904,1753845034741,-460.0,0.00019968,2]
[376057905,1753845034751,-372.81210753,0.00019969,2]
[376057906,1753845034764,-460.0,0.00019969,2]
[376057907,1753845034775,-460.0,0.00019969,2]
[376057908,1753845034787,-460.0,0.00019969,2]
[376057909,1753845034800,-600.34937577,0.00019969,2]
[376057910,1753845034811,-1397.32,0.00019969,2]
[376057911,1753845034823,-460.0,0.00019969,2]
[376057912,1753845034834,-542.79689959,0.00019969,2]
[376057913,1753845034845,-460.0,0.00019969,2]
[376057914,1753845034856,-787.15,0.00019969,2]
[376057915,1753845034869,-460.0,0.00019969,2]
[376057916,1753845034880,-460.0,0.00019969,2]
[376057917,1753845034891,-823.58,0.00019969,2]
[376057918,1753845034903,-460.0,0.00019969,2]
[376057919,1753845034916,-487.59,0.00019969,2]
[376057920,1753845034928,-1612.25,0.0001997,2]
[376057921,1753845034939,-460.0,0.0001997,2]
[376057922,1753845034950,-565.06,0.0001997,2]
[376057923,1753845034961,-463.91,0.0001997,2]
[376057924,1753845034972,-501.54,0.0001997,2]
[376057925,1753845034982,-500.0,0.00019973,2]
[376057926,1753845034992,-503.23798076,0.00019973,2]
[376057927,1753845035003,-500.0,0.00019973,2]
[376057928,1753845035014,-509.1208536,0.00019973,2]
[376057929,1753845035026,-500.0,0.00019973,2]
[376057930,1753845035036,-460.0,0.00019973,2]
[376057931,1753845035048,-460.0,0.00019975,2]
[376057932,1753845035058,-287.21,0.0001999,3]
[376057933,1753845035069,-861.67,0.0001999,3]
[376057934,1753845035080,-450.0,0.00019999,2]
[376057935,1753845035091,-154.42353487,0.00019999,2]
[376057936,1753845035102,-646.46495848,0.00019999,2]
[376057937,1753845035113,-253.43232094,0.00019999,2]
[376057938,1753845035123,-3399.96838233,0.0002,2]
[376057939,1753845035134,-86399.91206751,0.0002,2]
[376057940,1753845035150,-568.97632696,0.0002,2]
[376057972,1753845038145,-460.0,0.00019145,2]
[376057974,1753845038156,-460.0,0.00019145,2]
[376057976,1753845038167,-3399.96838233,0.0002,2]
[376057978,1753845038177,-631476.26160553,0.0002,2]
[376057980,1753845038188,-502.08710618,0.00020067,2]
[376057982,1753845038198,-312.16666667,0.00020083,2]
[376057984,1753845038209,-160.0,0.00020083,2]
[376057986,1753845038219,-460.59675358,0.00020083,2]
[376057988,1753845038229,-160.0,0.00020083,2]
[376057990,1753845038240,-526.76118213,0.00020083,2]
[376057993,1753845038250,-216.14611358,0.00020083,2]
[376057995,1753845038261,-841.2246943,0.00020083,2]
[376057997,1753845038271,-160.0,0.00020083,2]
[376057999,1753845038281,-12639.5777639,0.00020083,2]
[376058001,1753845038292,-3000.0,0.000201,2]
[376058003,1753845038302,-3000.0,0.0002011,2]
[376058005,1753845038313,-3000.0,0.0002012,2]
[376058007,1753845038324,-3000.0,0.0002013,2]
[376058009,1753845038334,-3000.0,0.0002014,2]
[376058011,1753845038345,-3000.0,0.0002015,2]
[376058014,1753845038355,-3000.0,0.0002016,2]
[376058016,1753845038366,-3000.0,0.0002017,2]
[376058018,1753845038376,-3000.0,0.0002018,2]
[376058020,1753845038387,-303.450362,0.00020187,2]
[376058022,1753845038397,-3000.0,0.0002019,2]
[376058024,1753845038407,-3000.0,0.000202,2]
[376058026,1753845038417,-1785.90915639,0.0002021,2]
[376058029,1753845038431,-1214.09084361,0.0002021,2]
[376058031,1753845038441,-3000.0,0.0002022,2]
[376058033,1753845038451,-3000.0,0.0002023,2]
[376058035,1753845038462,-199.64049148,0.0002023,2]
[376058037,1753845038473,-3000.0,0.0002024,2]
[376058039,1753845038483,-530.09,0.00020241,2]
[376058041,1753845038493,-1136.61,0.00020242,2]
[376058043,1753845038504,-460.0,0.00020242,2]
[376058046,1753845038514,-798.73,0.00020242,2]
[376058048,1753845038524,-468.75,0.00020242,2]
[376058050,1753845038535,-2890.26,0.00020242,2]
[376058052,1753845038545,-460.0,0.00020242,2]
[376058054,1753845038556,-581.99559511,0.00020243,2]
[376058056,1753845038567,-460.0,0.00020243,2]
[376058058,1753845038578,-240.37,0.00020243,2]
[376058061,1753845038590,-1397.32,0.00020243,2]
[376058063,1753845038601,-460.0,0.00020243,2]
[376058065,1753845038611,-787.15,0.00020243,2]
[376058067,1753845038620,-371.87,0.00020243,2]
[376058069,1753845038629,-460.0,0.00020243,2]
[376058071,1753845038640,-823.58,0.00020243,2]
[376058073,1753845038649,-460.0,0.00020243,2]
[376058091,1753845038810,-487.59,0.00020243,2]
[376058093,1753845038823,-1612.25,0.00020244,2]
[376058095,1753845038833,-460.0,0.00020244,2]
[376058097,1753845038843,-565.06,0.00020244,2]
[376058099,1753845038852,-463.91,0.00020244,2]
[376058101,1753845038861,-501.54,0.00020244,2]
[376058103,1753845038870,-464.57066217,0.00020246,2]
[376058105,1753845038880,-460.0,0.00020246,2]
[376058107,1753845038889,-460.0,0.00020246,2]
[376058109,1753845038898,-460.0,0.00020246,2]
[376058111,1753845038909,-460.0,0.00020247,2]
[376058113,1753845038918,-460.0,0.00020249,2]
[376058115,1753845038927,-3000.0,0.0002025,2]
[376058117,1753845038936,-3000.0,0.0002026,2]
[376058119,1753845038946,-3000.0,0.0002027,2]
[376058121,1753845038956,-3000.0,0.0002028,2]
[376058123,1753845038966,-4394.144939,0.0002029,2]
[376058125,1753845038976,-492.00346855,0.00020437,2]
[376058127,1753845038985,-500.0,0.00020437,2]
[376058129,1753845038994,-199.64049148,0.00020494,2]
[376058131,1753845039004,-530.09,0.00020515,2]
[376058133,1753845039013,-1136.61,0.00020516,2]
[376058135,1753845039023,-460.0,0.00020516,2]
[376058137,1753845039033,-798.73,0.00020516,2]
[376058139,1753845039042,-468.75,0.00020516,2]
[376058141,1753845039052,-2890.26,0.00020516,2]
[376058143,1753845039061,-460.0,0.00020516,2]
[376058145,1753845039071,-252.2,0.00020517,2]
[376058147,1753845039080,-1397.32,0.00020517,2]
[376058149,1753845039090,-460.0,0.00020517,2]
[376058151,1753845039099,-787.15,0.00020517,2]
[376058153,1753845039108,-460.0,0.00020517,2]
[376058155,1753845039118,-823.58,0.00020517,2]
[376058157,1753845039127,-460.0,0.00020517,2]
[376058159,1753845039137,-487.59,0.00020517,2]
[376058161,1753845039147,-1612.25,0.00020518,2]
[376058163,1753845039156,-460.0,0.00020518,2]
[376058165,1753845039166,-565.06,0.00020518,2]
[376058167,1753845039175,-463.91,0.00020518,2]
[376058169,1753845039184,-501.54,0.00020518,2]
[376058170,1753845039194,-460.0,0.0002052,2]
[376058172,1753845039204,-460.0,0.00020521,2]
[376058174,1753845039213,-460.0,0.00020523,2]
[376058176,1753845039223,-1560.6195313,0.00020541,2]
[376058178,1753845039232,-420.0,0.00020573,2]
[376058180,1753845039242,-199.64049148,0.00020757,2]
[376058182,1753845039251,-530.09,0.00020789,2]
[376058184,1753845039261,-1136.61,0.0002079,2]
[376058186,1753845039271,-460.0,0.0002079,2]
[376058188,1753845039281,-798.73,0.0002079,2]
[376058190,1753845039290,-468.75,0.0002079,2]
[376058192,1753845039300,-2890.26,0.0002079,2]
[376058194,1753845039320,-183.47101375,0.0002079,2]
[376058196,1753845039337,-1397.32,0.00020791,2]
[376058198,1753845039346,-460.0,0.00020791,2]
[376058200,1753845039356,-787.15,0.00020791,2]
[376058202,1753845039366,-460.0,0.00020791,2]
[376058205,1753845039377,-823.58,0.00020791,2]
[376058206,1753845039398,-487.59,0.00020791,2]
[376058208,1753845039413,-1612.25,0.00020792,2]
[376058211,1753845039422,-460.0,0.00020792,2]
[376058213,1753845039432,-565.06,0.00020792,2]
[376058214,1753845039442,-463.91,0.00020792,2]
[376058216,1753845039451,-501.54,0.00020792,2]
[376058218,1753845039461,-460.0,0.00020794,2]
[376058220,1753845039471,-460.0,0.00020795,2]
[376058222,1753845039480,-460.0,0.00020797,2]
[376058224,1753845039490,-160.0,0.00020873,2]
[376058226,1753845039499,-151.0,0.00020896,4]
[376058228,1753845039509,-151.0,0.000209,3]
[376058231,1753845039520,-312.16666667,0.00020968,3]
[376058233,1753845039529,-11974.76969198,0.00020968,3]
[376058235,1753845039539,-160.0,0.00020968,3]
[376058237,1753845039549,-3000.0,0.00021,2]
[376058239,1753845039559,-3000.0,0.0002101,2]
[376058241,1753845039568,-3000.0,0.0002102,2]
[376058243,1753845039578,-199.64049148,0.0002102,2]
[376058245,1753845039587,-3000.0,0.0002103,2]
[376058247,1753845039601,-151.0,0.00021035,2]
[376058248,1753845039610,-151.0,0.00021035,2]
[376058251,1753845039619,-3000.0,0.0002104,2]
[376058252,1753845039628,-3000.0,0.0002105,2]
[376058254,1753845039638,-159.901221,0.0002106,2]
[376058257,1753845039650,-2840.098779,0.0002106,2]
[376058259,1753845039659,-530.09,0.00021063,2]
[376058261,1753845039669,-1136.61,0.00021064,2]
[376058263,1753845039678,-460.0,0.00021064,2]
[376058265,1753845039688,-798.73,0.00021064,2]
[376058267,1753845039698,-468.75,0.00021064,2]
[376058269,1753845039707,-2890.26,0.00021064,2]
[376058271,1753845039716,-1397.32,0.00021065,2]
[376058273,1753845039725,-460.0,0.00021065,2]
[376058275,1753845039734,-787.15,0.00021065,2]
[376058277,1753845039744,-460.0,0.00021065,2]
[376058279,1753845039753,-823.58,0.00021065,2]
[376058281,1753845039762,-487.59,0.00021065,2]
[376058283,1753845039771,-1612.25,0.00021066,2]
[376058285,1753845039780,-460.0,0.00021066,2]
[376058287,1753845039789,-565.06,0.00021066,2]
[376058289,1753845039798,-463.91,0.00021066,2]
[376058291,1753845039807,-501.54,0.00021066,2]
[376058293,1753845039816,-460.0,0.00021068,2]
[376058295,1753845039826,-460.0,0.00021069,2]
[376058296,1753845039835,-3000.0,0.0002107,2]
[376058298,1753845039844,-460.0,0.00021071,2]
[376058300,1753845039853,-3000.0,0.0002108,2]
[376058302,1753845039862,-3000.0,0.0002109,2]
[376058304,1753845039871,-151.0,0.00021093,4]
[376058306,1753845039880,-3000.0,0.000211,2]
[376058308,1753845039890,-3000.0,0.0002111,2]
[376058310,1753845039899,-3000.0,0.0002112,2]
[376058312,1753845039909,-157.934763,0.00021123,3]
[376058314,1753845039919,-3000.0,0.0002113,2]
[376058316,1753845039929,-200.0,0.00021138,15]
[376058318,1753845039939,-200.0,0.00021138,15]
[376058320,1753845039951,-200.0,0.00021138,15]
[376058322,1753845039961,-200.0,0.00021138,15]
[376058324,1753845039970,-320.0,0.00021138,15]
[376058326,1753845039980,-3000.0,0.0002114,2]
[376058328,1753845039989,-1503.20608424,0.0002115,2]
[376058331,1753845040002,-1496.79391576,0.0002115,2]
[376058333,1753845040011,-3000.0,0.0002116,2]
[376058335,1753845040020,-3000.0,0.0002117,2]
[376058337,1753845040029,-3000.0,0.0002118,2]
[376058339,1753845040037,-3000.0,0.0002119,2]
[376058341,1753845040047,-3000.0,0.000212,2]
[376058343,1753845040056,-3000.0,0.0002121,2]
[376058345,1753845040065,-3000.0,0.0002122,2]
[376058347,1753845040074,-3000.0,0.0002123,2]
[376058348,1753845040084,-3000.0,0.0002124,2]
[376058350,1753845040094,-3000.0,0.0002125,2]
[376058352,1753845040103,-3000.0,0.0002126,2]
[376058354,1753845040112,-3000.0,0.0002127,2]
[376058356,1753845040122,-151.0,0.0002127,2]
[376058358,1753845040132,-2219.01695533,0.0002128,2]
[376058361,1753845040148,-780.98304467,0.0002128,2]
[376058363,1753845040167,-151.0,0.00021289,4]
[376058365,1753845040176,-2017.46168405,0.0002129,2]
[376058367,1753845040188,-982.53831595,0.0002129,2]
[376058369,1753845040198,-179.74835231,0.00021295,2]
[376058371,1753845040207,-3000.0,0.000213,2]
[376058373,1753845040216,-1212.37593144,0.0002131,2]
[376058375,1753845040228,-1331.42162556,0.0002131,2]
[376058377,1753845040239,-456.202443,0.0002131,2]
[376058379,1753845040249,-3000.0,0.0002132,2]
[376058381,1753845040258,-109.09993762,0.0002133,2]
[376058383,1753845040270,-1648.76776359,0.0002133,2]
[376058385,1753845040281,-435.0,0.0002133,2]
[376058392,1753845040337,-807.13229879,0.0002133,2]
[376058394,1753845040347,-530.09,0.00021337,2]
[376058396,1753845040357,-26.7195074,0.00021338,2]
[376058398,1753845040368,-507.81705216,0.00021338,2]
[376058401,1753845040380,-602.07344044,0.00021338,2]
[376058403,1753845040390,-460.0,0.00021338,2]
[376058405,1753845040399,-798.73,0.00021338,2]
[376058407,1753845040408,-468.75,0.00021338,2]
[376058409,1753845040417,-2890.26,0.00021338,2]
[376058411,1753845040427,-1397.32,0.00021339,2]
[376058412,1753845040436,-460.0,0.00021339,2]
[376058414,1753845040444,-787.15,0.00021339,2]
[376058416,1753845040454,-460.0,0.00021339,2]
[376058418,1753845040463,-823.58,0.00021339,2]
[376058420,1753845040472,-487.59,0.00021339,2]
[376058422,1753845040481,-3000.0,0.0002134,2]
[376058424,1753845040490,-1612.25,0.0002134,2]
[376058426,1753845040499,-460.0,0.0002134,2]
[376058428,1753845040509,-565.06,0.0002134,2]
[376058430,1753845040519,-463.91,0.0002134,2]
[376058432,1753845040529,-501.54,0.0002134,2]
[376058434,1753845040538,-460.0,0.00021342,2]
[376058436,1753845040548,-160.1336292,0.00021342,2]
[376058438,1753845040558,-178.4701425,0.00021342,2]
[376058440,1753845040568,-178.4701425,0.00021342,2]
[376058442,1753845040577,-160.1336292,0.00021342,2]
[376058444,1753845040587,-508.431,0.00021343,2]
[376058446,1753845040601,-460.0,0.00021343,2]
[376058449,1753845040611,-460.0,0.00021345,2]
[376058451,1753845040621,-3000.0,0.0002135,2]
[376058452,1753845040632,-500.0,0.00021356,2]
[376058454,1753845040643,-574.42,0.0002136,3]
[376058456,1753845040653,-3000.0,0.0002136,2]
[376058458,1753845040669,-3000.0,0.0002137,2]
[376058460,1753845040686,-3000.0,0.0002138,2]
[376058462,1753845040696,-3000.0,0.0002139,2]
[376058464,1753845040705,-3000.0,0.000214,2]
[376058466,1753845040714,-3000.0,0.0002141,2]
[376058468,1753845040723,-477.3937716,0.00021416,2]
[376058470,1753845040733,-586.5601813,0.00021417,2]
[376058472,1753845040742,-3000.0,0.0002142,2]
[376058474,1753845040751,-260.0,0.00021421,2]
[376058476,1753845040762,-3000.0,0.0002143,2]
[376058478,1753845040771,-160.0,0.00021434,3]
[376058480,1753845040781,-3418.484885,0.0002144,2]
[376058482,1753845040790,-151.0,0.00021486,4]
[376058484,1753845040799,-970.0,0.00021491,2]
[376058486,1753845040808,-407.0,0.00021491,2]
[376058488,1753845040819,-425.782,0.00021491,2]
[376058490,1753845040829,-530.09,0.00021611,2]
[376058492,1753845040838,-1136.61,0.00021612,2]
[376058494,1753845040848,-460.0,0.00021612,2]
[376058496,1753845040857,-798.73,0.00021612,2]
[376058498,1753845040867,-468.75,0.00021612,2]
[376058500,1753845040876,-2890.26,0.00021612,2]
[376058502,1753845040886,-1397.32,0.00021613,2]
[376058504,1753845040896,-460.0,0.00021613,2]
[376058506,1753845040906,-787.15,0.00021613,2]
[376058508,1753845040917,-460.0,0.00021613,2]
[376058510,1753845040927,-823.58,0.00021613,2]
[376058512,1753845040936,-487.59,0.00021613,2]
[376058514,1753845040946,-1612.25,0.00021614,2]
[376058516,1753845040956,-460.0,0.00021614,2]
[376058518,1753845040965,-565.06,0.00021614,2]
[376058520,1753845040974,-463.91,0.00021614,2]
[376058522,1753845040983,-501.54,0.00021614,2]
[376058524,1753845040993,-460.0,0.00021616,2]
[376058526,1753845041003,-460.0,0.00021617,2]
[376058528,1753845041013,-460.0,0.00021619,2]
[376058530,1753845041021,-151.0,0.00021683,4]
[376058532,1753845041030,-2146.0,0.00021721,2]
[376058534,1753845041040,-179.732417,0.00021795,2]
[376058537,1753845041050,-160.0,0.00021868,4]
[376058539,1753845041059,-151.0,0.0002188,4]
[376058541,1753845041069,-530.09,0.00021885,2]
[376058543,1753845041078,-1136.61,0.00021886,2]
[376058544,1753845041087,-255.41641037,0.00021886,2]
[376058547,1753845041097,-798.73,0.00021886,2]
[376058549,1753845041106,-468.75,0.00021886,2]
[376058551,1753845041115,-2890.26,0.00021886,2]
[376058552,1753845041124,-1397.32,0.00021887,2]
[376058554,1753845041134,-152.991824,0.00021887,2]
[376058556,1753845041144,-16.08071475,0.00021887,2]
[376058559,1753845041157,-134.91928525,0.00021887,2]
[376058561,1753845041166,-460.0,0.00021887,2]
[376058563,1753845041175,-787.15,0.00021887,2]
[376058565,1753845041186,-460.0,0.00021887,2]
[376058567,1753845041195,-823.58,0.00021887,2]
[376058569,1753845041204,-199.914355,0.00021887,2]
[376058570,1753845041214,-487.59,0.00021887,2]
[376058571,1753845041223,-153.083486,0.00021888,2]
[376058572,1753845041233,-1612.25,0.00021888,2]
[376058573,1753845041242,-460.0,0.00021888,2]
[376058574,1753845041251,-565.06,0.00021888,2]
[376058575,1753845041260,-463.91,0.00021888,2]
[376058576,1753845041270,-253.161492,0.00021888,2]
[376058577,1753845041279,-253.161492,0.00021888,2]
[376058578,1753845041289,-501.54,0.00021888,2]
[376058579,1753845041299,-460.0,0.0002189,2]
[376058580,1753845041308,-151.0,0.00021891,2]
[376058581,1753845041317,-151.722716,0.00021891,2]
[376058582,1753845041327,-373.897991,0.00021891,2]
[376058583,1753845041336,-373.897991,0.00021891,2]
[376058584,1753845041346,-153.218773,0.00021891,2]
[376058585,1753845041355,-153.218773,0.00021891,2]
[376058586,1753845041365,-460.0,0.00021891,2]
[376058587,1753845041374,-460.0,0.00021893,2]
[376058588,1753845041383,-500.0,0.00021917,2]
[376058590,1753845041393,-500.0,0.00021917,2]
[376058591,1753845041402,-500.0,0.00021917,2]
[376058592,1753845041412,-502.58,0.00021917,2]
[376058594,1753845041422,-200.0,0.00021918,2]
[376058596,1753845041431,-360.0,0.00021969,2]
[376058598,1753845041440,-1000.0,0.00022,2]
[376058600,1753845041451,-1000.0,0.00022,2]
[376058602,1753845041460,-1000.0,0.00022,2]
[376058604,1753845041470,-1000.0,0.00022,2]
[376058606,1753845041480,-1000.0,0.00022,2]
[376058608,1753845041489,-1000.0,0.00022,2]
[376058610,1753845041499,-1000.0,0.00022,2]
[376058612,1753845041508,-1000.0,0.00022,2]
[376058614,1753845041517,-1000.0,0.00022,2]
[376058616,1753845041526,-1000.0,0.00022,2]
[376058618,1753845041535,-1000.0,0.00022,2]
[376058620,1753845041545,-73.09431244,0.00022,2]
[376058623,1753845041562,-926.90568756,0.00022,2]
[376058625,1753845041572,-438.38429826,0.00022,2]
[376058627,1753845041584,-561.61570174,0.00022,2]
[376058629,1753845041596,-1000.0,0.00022,2]
[376058631,1753845041605,-1000.0,0.00022,2]
[376058633,1753845041615,-1000.0,0.00022,2]
[376058635,1753845041624,-1000.0,0.00022,2]
[376058637,1753845041634,-1000.0,0.00022,2]
[376058639,1753845041646,-1000.0,0.00022,2]
[376058641,1753845041655,-1000.0,0.00022,2]
[376058643,1753845041664,-1000.0,0.00022,2]
[376058645,1753845041675,-1000.0,0.00022,2]
[376058647,1753845041684,-1000.0,0.00022,2]
[376058649,1753845041695,-1000.0,0.00022,2]
[376058651,1753845041705,-1000.0,0.00022,2]
[376058653,1753845041714,-1000.0,0.00022,2]
[376058655,1753845041724,-1000.0,0.00022,2]
[376058657,1753845041733,-1000.0,0.00022,2]
[376058659,1753845041743,-1000.0,0.00022,2]
[376058661,1753845041752,-1000.0,0.00022,2]
[376058663,1753845041761,-1000.0,0.00022,2]
[376058665,1753845041770,-1000.0,0.00022,2]
[376058667,1753845041779,-1000.0,0.00022,2]
[376058669,1753845041789,-1000.0,0.00022,2]
[376058671,1753845041798,-1000.0,0.00022,2]
[376058673,1753845041807,-1000.0,0.00022,2]
[376058675,1753845041816,-1000.0,0.00022,2]
[376058677,1753845041826,-1000.0,0.00022,2]
[376058679,1753845041836,-1000.0,0.00022,2]
[376058681,1753845041845,-1000.0,0.00022,2]
[376058683,1753845041855,-1000.0,0.00022,2]
[376058685,1753845041864,-1000.0,0.00022,2]
[376058687,1753845041873,-1000.0,0.00022,2]
[376058689,1753845041885,-1000.0,0.00022,2]
[376058691,1753845041894,-1000.0,0.00022,2]
[376058693,1753845041903,-1000.0,0.00022,2]
[376058695,1753845041912,-1000.0,0.00022,2]
[376058697,1753845041922,-1000.0,0.00022,2]
[376058699,1753845041931,-1000.0,0.00022,2]
[376058701,1753845041940,-1000.0,0.00022,2]
[376058703,1753845041951,-1000.0,0.00022,2]
[376058705,1753845041960,-1000.0,0.00022,2]
[376058706,1753845041970,-1000.0,0.00022,2]
[376058709,1753845041980,-1000.0,0.00022,2]
[376058710,1753845041990,-1000.0,0.00022,2]
[376058712,1753845041999,-1000.0,0.00022,2]
[376058715,1753845042009,-1000.0,0.00022,2]
[376058716,1753845042018,-1000.0,0.00022,2]
[376058718,1753845042028,-1000.0,0.00022,2]
[376058721,1753845042039,-1000.0,0.00022,2]
[376058722,1753845042049,-1000.0,0.00022,2]